bitfinex/quotes_BTCUSD_20230108
["timestamp","ask_amount","ask_price","bid_price","bid_amount"]
[1673168061896,0.86435375,16964.0,16963.0,0.89521778]
[1673168062407,0.86435375,16964.0,16963.0,0.8952782]
[1673168062653,0.86435375,16964.0,16963.0,0.89521778]
[1673168063406,0.65216485,16964.0,16963.0,1.58076695]
[1673168063637,0.65216485,16964.0,16963.0,2.18738995]
[1673168065738,0.65216485,16964.0,16963.0,2.18729452]
[1673168069902,0.65216485,16964.0,16963.0,1.58067152]
[1673168070457,0.65216485,16964.0,16963.0,2.1872341]
[1673168070985,0.82893706,16964.0,16963.0,1.5806111]
[1673168071514,0.82893706,16964.0,16963.0,2.1872341]
[1673168071820,0.82893706,16964.0,16963.0,1.5806111]
[1673168072085,0.82893706,16964.0,16963.0,2.1872341]
[1673168072346,0.82893706,16964.0,16963.0,1.5806111]
[1673168073192,0.82893706,16964.0,16963.0,2.1872341]
[1673168073447,0.82893706,16964.0,16963.0,1.5806111]
[1673168073977,0.82893706,16964.0,16963.0,2.1872341]
[1673168073978,0.65217481,16964.0,16963.0,2.1872341]
[1673168074254,0.38693179,16964.0,16963.0,2.18729452]
[1673168074510,0.65217481,16964.0,16963.0,2.18729452]
[1673168075017,0.38693179,16964.0,16963.0,2.18729452]
[1673168077014,0.38693179,16964.0,16963.0,2.36407966]
[1673168077266,0.38693179,16964.0,16963.0,2.18729452]
[1673168077534,0.38693179,16964.0,16963.0,2.36407966]
[1673168078078,0.38693179,16964.0,16963.0,2.18729452]
[1673168078348,0.38693179,16964.0,16963.0,2.36407966]
[1673168078569,0.21011116,16964.0,16963.0,2.36407966]
[1673168078830,0.38693179,16964.0,16963.0,2.36407966]
[1673168079350,0.21011116,16964.0,16963.0,2.18729452]
[1673168079613,0.38693179,16964.0,16963.0,2.18729452]
[1673168079862,0.21011116,16964.0,16963.0,2.18729452]
[1673168080386,0.38693179,16964.0,16963.0,2.18729452]
[1673168081328,0.21011116,16964.0,16963.0,2.18729452]
[1673168081582,0.21011116,16964.0,16963.0,2.77681252]
[1673168081834,0.21011116,16964.0,16963.0,2.95359766]
[1673168082081,0.21011116,16964.0,16963.0,3.21877537]
[1673168082330,0.21011116,16964.0,16963.0,2.95359766]
[1673168085172,0.21011116,16964.0,16963.0,2.25878858]
[1673168086685,0.21011116,16964.0,16963.0,2.84830658]
[1673168087442,0.21011116,16964.0,16963.0,3.5434711]
[1673168087688,0.21011116,16964.0,16963.0,3.36668596]
[1673168088937,0.21011116,16964.0,16963.0,3.5434711]
[1673168089713,0.21011116,16964.0,16963.0,2.84830658]
[1673168091453,0.21011116,16964.0,16963.0,2.67152144]
[1673168091454,0.21004421,16964.0,16963.0,2.67152144]
[1673168091691,0.21004421,16964.0,16963.0,2.84830658]
[1673168092202,0.21004421,16964.0,16963.0,2.67152144]
[1673168092729,0.21004421,16964.0,16963.0,3.36668596]
[1673168094829,0.21004421,16964.0,16963.0,3.5434711]
[1673168105007,0.21004421,16964.0,16963.0,3.36668596]
[1673168105267,0.21004421,16964.0,16963.0,3.5434711]
[1673168105779,0.21004421,16964.0,16963.0,3.36668596]
[1673168106274,0.21004421,16964.0,16963.0,3.5434711]
[1673168108478,0.21004421,16964.0,16963.0,2.84830658]
[1673168108978,0.21004421,16964.0,16963.0,2.67152144]
[1673168110467,0.21004421,16964.0,16963.0,3.36668596]
[1673168111489,0.38686484,16964.0,16963.0,3.5434711]
[1673168112030,0.21004421,16964.0,16963.0,3.5434711]
[1673168113286,0.38686484,16964.0,16963.0,3.5434711]
[1673168114054,0.21004421,16964.0,16963.0,3.5434711]
[1673168114448,0.21004421,16964.0,16963.0,3.80864881]
[1673168114706,0.21004421,16964.0,16963.0,3.5434711]
[1673168114953,0.21004421,16964.0,16963.0,3.80864881]
[1673168115468,0.21004421,16964.0,16963.0,3.11348429]
[1673168116248,0.38686484,16964.0,16963.0,2.84830658]
[1673168116505,0.38686484,16964.0,16963.0,2.84823394]
[1673168117590,0.38686484,16964.0,16963.0,3.54339846]
[1673168119361,0.38686484,16964.0,16963.0,2.25871594]
[1673168119608,0.65210786,16964.0,16963.0,2.57679427]
[1673168122703,0.65210786,16964.0,16963.0,1.98727627]
[1673168123011,0.65210786,16964.0,16963.0,1.98733669]
[1673168132223,0.65210786,16964.0,16963.0,1.38071369]
[1673168132441,0.65210786,16964.0,16963.0,1.98733669]
[1673168134005,0.65210786,16964.0,16963.0,2.29281368]
[1673168134305,0.38686484,16964.0,16963.0,2.29281368]
[1673168135112,0.65210786,16964.0,16963.0,2.29281368]
[1673168135400,0.65210786,16964.0,16963.0,1.98733669]
[1673168136435,0.38686484,16964.0,16963.0,1.98733669]
[1673168136680,0.65210786,16964.0,16963.0,1.98733669]
[1673168137302,0.65210786,16964.0,16963.0,1.98727627]
[1673168138305,0.65210786,16964.0,16963.0,2.29274722]
[1673168138792,0.65210786,16964.0,16963.0,1.98727627]
[1673168139803,0.64337974,16964.0,16963.0,1.98727627]
[1673168140224,0.64933248,16964.0,16963.0,1.98727627]
[1673168140739,0.64933248,16964.0,16963.0,1.98733669]
[1673168141518,0.38408946,16964.0,16963.0,1.98733669]
[1673168141786,0.64933248,16964.0,16963.0,2.29281368]
[1673168144063,0.64933248,16964.0,16963.0,2.29275326]
[1673168144835,0.64933248,16964.0,16963.0,2.29281368]
[1673168151356,0.64933248,16964.0,16963.0,2.29275326]
[1673168153223,1.00291536,16964.0,16963.0,2.29275326]
[1673168153708,0.82609473,16964.0,16963.0,2.29275326]
[1673168154222,0.82609473,16964.0,16963.0,1.68613026]
[1673168154971,0.82609473,16964.0,16963.0,1.68619068]
[1673168155257,0.82609473,16964.0,16963.0,1.68613026]
[1673168155470,0.82609473,16964.0,16963.0,2.29275326]
[1673168155982,0.82609473,16964.0,16963.0,2.29281368]
[1673168156487,0.82609473,16964.0,16963.0,2.29275326]
[1673168156734,0.82609473,16964.0,16963.0,1.68613026]
[1673168156984,0.82609473,16964.0,16963.0,1.68619068]
[1673168157217,0.82609473,16964.0,16963.0,2.29281368]
[1673168157678,0.82609473,16964.0,16963.0,2.29275326]
[1673168157965,0.82609473,16964.0,16963.0,1.68619068]
[1673168158208,0.82609473,16964.0,16963.0,1.68613026]
[1673168158452,0.82609473,16964.0,16963.0,2.29275326]
[1673168158718,0.82609473,16964.0,16963.0,1.68613026]
[1673168159204,0.82609473,16964.0,16963.0,1.68619068]
[1673168159924,0.82609473,16964.0,16963.0,2.29281368]
[1673168160182,0.82609473,16964.0,16963.0,1.98733669]
[1673168160675,0.82609473,16964.0,16963.0,1.38071369]
[1673168161161,0.82609473,16964.0,16963.0,1.98718575]
[1673168161406,0.82609473,16964.0,16963.0,1.38056275]
[1673168161939,0.82609473,16964.0,16963.0,1.98718575]
[1673168162188,0.82609473,16964.0,16963.0,1.38056275]
[1673168162445,0.82609473,16964.0,16963.0,1.98718575]
[1673168162712,0.82609473,16964.0,16963.0,1.38056275]
[1673168162986,0.82609473,16964.0,16963.0,1.98724617]
[1673168163245,0.82609473,16964.0,16963.0,1.98718575]
[1673168163976,0.82609473,16964.0,16963.0,1.38062317]
[1673168164219,0.82609473,16964.0,16963.0,1.38056275]
[1673168164460,0.82609473,16964.0,16963.0,1.98718575]
[1673168164707,0.82609473,16964.0,16963.0,1.38056275]
[1673168164967,0.82609473,16964.0,16963.0,1.98724617]
[1673168165247,0.82609473,16964.0,16963.0,1.38062317]
[1673168165506,0.82609473,16964.0,16963.0,1.98718575]
[1673168165727,0.82609473,16964.0,16963.0,1.38056275]
[1673168166892,0.82609473,16964.0,16963.0,1.38062317]
[1673168167141,0.82609473,16964.0,16963.0,1.98724617]
[1673168167369,0.82609473,16964.0,16963.0,1.38062317]
[1673168167587,0.82609473,16964.0,16963.0,1.98718575]
[1673168167851,0.82609473,16964.0,16963.0,1.38056275]
[1673168168103,0.82609473,16964.0,16963.0,1.98718575]
[1673168168871,0.82609473,16964.0,16963.0,1.98724617]
[1673168169676,0.82609473,16964.0,16963.0,1.98718575]
[1673168169949,0.82609473,16964.0,16963.0,1.98724617]
[1673168170182,0.82609473,16964.0,16963.0,1.38062317]
[1673168170432,0.82609473,16964.0,16963.0,1.98724617]
[1673168170943,0.82609473,16964.0,16963.0,1.38062317]
[1673168171951,0.82609473,16964.0,16963.0,1.98724617]
[1673168172209,0.82609473,16964.0,16963.0,1.38062317]
[1673168172692,0.82609473,16964.0,16963.0,1.98724617]
[1673168173694,0.82609473,16964.0,16963.0,0.68545865]
[1673168173955,0.82609473,16964.0,16963.0,1.29208165]
[1673168174205,0.82609473,16964.0,16963.0,0.68545865]
[1673168174455,0.82609473,16964.0,16963.0,0.68539823]
[1673168175495,0.82609473,16964.0,16963.0,1.29202123]
[1673168175744,0.82609473,16964.0,16963.0,1.98718575]
[1673168177491,0.82609473,16964.0,16963.0,1.38056275]
[1673168177973,0.82609473,16964.0,16963.0,1.38062317]
[1673168178203,0.82609473,16964.0,16963.0,1.38056275]
[1673168178457,0.82609473,16964.0,16963.0,1.98718575]
[1673168178714,0.82609473,16964.0,16963.0,1.38056275]
[1673168178971,0.82609473,16964.0,16963.0,1.38062317]
[1673168179221,0.82609473,16964.0,16963.0,1.98724617]
[1673168179901,1.00291786,16964.0,16963.0,2.26619634]
[1673168180167,0.82609473,16964.0,16963.0,1.98718575]
[1673168181260,0.82609473,16964.0,16963.0,1.38056275]
[1673168181530,0.82609473,16964.0,16963.0,1.98718575]
[1673168181757,0.82609473,16964.0,16963.0,1.98724617]
[1673168181979,0.82609473,16964.0,16963.0,1.38056275]
[1673168182242,0.82609473,16964.0,16963.0,1.98718575]
[1673168182500,1.26819249,16964.0,16963.0,1.38056275]
[1673168182720,1.00294947,16964.0,16963.0,1.38056275]
[1673168182949,1.00294947,16964.0,16963.0,1.98724617]
[1673168183203,1.00294947,16964.0,16963.0,1.38062317]
[1673168183454,1.00294947,16964.0,16963.0,1.98718575]
[1673168183703,1.00294947,16964.0,16963.0,1.38056275]
[1673168184711,1.00294947,16964.0,16963.0,1.38046996]
[1673168184967,1.00294947,16964.0,16963.0,2.1287349]
[1673168185216,0.82607557,16964.0,16963.0,2.1287349]
[1673168185503,0.64931398,16964.0,16963.0,2.1287349]
[1673168185763,0.5609122,16964.0,16963.0,2.30552004]
[1673168186024,0.5609122,16964.0,16963.0,2.30558046]
[1673168186287,0.56834677,16964.0,16963.0,2.30558046]
[1673168187117,0.74515361,16964.0,16963.0,2.30558046]
[1673168187377,0.74515361,16964.0,16963.0,2.30552004]
[1673168188391,0.74515361,16964.0,16963.0,2.12879532]
[1673168195210,0.92190677,16964.0,16963.0,2.12879532]
[1673168196720,0.92190677,16964.0,16963.0,2.11278842]
[1673168199820,0.92190677,16964.0,16963.0,2.06259252]
[1673168201692,0.74515361,16964.0,16963.0,2.06259252]
[1673168202192,0.74506548,16964.0,16963.0,1.45596952]
[1673168202436,0.74506548,16964.0,16963.0,2.06259252]
[1673168202893,0.74506548,16964.0,16963.0,1.45596952]
[1673168203435,0.74506548,16964.0,16963.0,1.4559091]
[1673168204449,0.74506548,16964.0,16963.0,1.45596952]
[1673168208739,0.74506548,16964.0,16963.0,1.31432758]
[1673168214981,0.74506548,16964.0,16963.0,1.49120931]
[1673168222968,0.74506548,16964.0,16963.0,1.31415691]
[1673168223809,0.74506548,16964.0,16963.0,1.49103864]
[1673168224630,0.74506548,16964.0,16963.0,1.49109906]
[1673168224884,0.74506548,16964.0,16963.0,1.49103864]
[1673168225112,1.01028934,16964.0,16963.0,1.49103864]
[1673168225391,0.74506548,16964.0,16963.0,1.49103864]
[1673168225620,0.74506548,16964.0,16963.0,1.49109906]
[1673168225893,0.74506548,16964.0,16963.0,1.82353712]
[1673168226722,1.01028934,16964.0,16963.0,1.82353712]
[1673168227254,1.363747,16964.0,16963.0,0.69516452]
[1673168228550,1.363747,16964.0,16963.0,0.69522494]
[1673168228796,1.363747,16964.0,16963.0,0.69516452]
[1673168229550,1.363747,16964.0,16962.0,1.29537141]
[1673168230754,1.233747,16964.0,16962.0,1.29543185]
[1673168231004,1.363747,16964.0,16962.0,1.29543185]
[1673168231502,1.363747,16964.0,16962.0,1.64090619]
[1673168232233,1.01028934,16964.0,16962.0,1.64090619]
[1673168232734,1.01028934,16964.0,16963.0,0.69213956]
[1673168233728,0.88028934,16964.0,16963.0,0.69213956]
[1673168233982,1.01028934,16964.0,16963.0,0.69213956]
[1673168234649,0.74506548,16964.0,16963.0,0.69213956]
[1673168235689,0.74506548,16964.0,16963.0,0.77755245]
[1673168242609,1.01028934,16964.0,16963.0,0.77755245]
[1673168242865,0.74506548,16964.0,16963.0,0.77755245]
[1673168246885,1.01028934,16964.0,16963.0,0.77755245]
[1673168249210,1.01028934,16964.0,16963.0,0.69213956]
[1673168255381,0.47983913,16964.0,16963.0,0.69213956]
[1673168258108,0.21461527,16964.0,16963.0,2.04654831]
[1673168258606,0.21461527,16964.0,16963.0,2.31172602]
[1673168259099,0.21461527,16964.0,16963.0,2.04654831]
[1673168259353,0.21461527,16964.0,16963.0,2.45439481]
[1673168259850,0.21461527,16964.0,16963.0,2.71957252]
[1673168260151,0.21461527,16964.0,16963.0,2.45439481]
[1673168261825,0.21461527,16964.0,16963.0,2.71957252]
[1673168262103,0.21461527,16964.0,16963.0,2.45439481]
[1673168263386,0.21461527,16964.0,16963.0,1.76225525]
[1673168264370,0.21461527,16964.0,16963.0,2.02743296]
[1673168265428,0.21461527,16964.0,16963.0,3.59090133]
[1673168266150,0.21461527,16964.0,16963.0,2.71957252]
[1673168268118,0.21461527,16964.0,16963.0,3.04391281]
[1673168273331,0.21461527,16964.0,16963.0,2.35177325]
[1673168275509,0.21461527,16964.0,16963.0,3.04391281]
[1673168276541,0.16247792,16964.0,16963.0,3.04391281]
[1673168277327,0.21793659,16964.0,16963.0,3.04391281]
[1673168279071,0.21793659,16964.0,16963.0,2.45439481]
[1673168279582,0.21793659,16964.0,16963.0,1.84777181]
[1673168279833,0.21793659,16964.0,16963.0,2.45439481]
[1673168280349,0.21793659,16964.0,16963.0,1.84777181]
[1673168280750,0.21793659,16964.0,16963.0,3.59089477]
[1673168281920,0.21793659,16964.0,16963.0,2.45439481]
[1673168282670,0.21793659,16964.0,16963.0,2.71957252]
[1673168282921,0.21793659,16964.0,16963.0,1.84777181]
[1673168283162,0.21793659,16964.0,16963.0,2.45439481]
[1673168285603,0.21793659,16964.0,16963.0,1.84777181]
[1673168285850,0.21793659,16964.0,16963.0,2.45439481]
[1673168286347,0.21793659,16964.0,16963.0,3.30909052]
[1673168286861,0.10231623,16965.0,16964.0,0.6]
[1673168287106,0.08623803,16965.0,16964.0,2.36780262]
[1673168287368,0.08623803,16965.0,16964.0,3.021702]
[1673168287627,0.10557794,16965.0,16964.0,2.3385637]
[1673168287889,1.10467064,16966.0,16965.0,0.6]
[1673168288138,1.14008733,16966.0,16965.0,1.70540859]
[1673168288393,1.14008733,16966.0,16965.0,1.37713058]
[1673168289124,1.14008733,16966.0,16965.0,1.98375358]
[1673168289390,1.14629885,16966.0,16965.0,1.37713058]
[1673168289646,1.21029885,16966.0,16965.0,1.38713058]
[1673168290156,1.21029885,16966.0,16965.0,1.99375358]
[1673168290413,1.65239661,16966.0,16965.0,1.99375358]
[1673168290669,1.49061663,16966.0,16965.0,1.38713058]
[1673168291976,1.49061663,16966.0,16965.0,1.387191]
[1673168292464,1.49061663,16966.0,16965.0,1.38713058]
[1673168293191,1.49061663,16966.0,16965.0,0.61]
[1673168293445,2.04461394,16966.0,16965.0,0.61]
[1673168293705,1.69115628,16966.0,16965.0,0.61]
[1673168295218,1.69115628,16966.0,16965.0,1.25945387]
[1673168295711,1.72657297,16966.0,16965.0,1.25945387]
[1673168295980,1.69115628,16966.0,16965.0,1.25945387]
[1673168296796,1.69115628,16966.0,16965.0,1.51374299]
[1673168297835,1.72657297,16966.0,16965.0,1.51374299]
[1673168298093,1.69115628,16966.0,16965.0,1.51374299]
[1673168298360,1.69108968,16966.0,16965.0,1.51374299]
[1673168298605,1.72650637,16966.0,16965.0,1.51374299]
[1673168299107,1.72650637,16966.0,16965.0,1.51380341]
[1673168299374,1.72650637,16966.0,16965.0,1.51374299]
[1673168299829,1.69108968,16966.0,16965.0,1.51374299]
[1673168300078,1.24899192,16966.0,16965.0,1.51380341]
[1673168300332,1.77036913,16966.0,16965.0,1.51374299]
[1673168300582,1.77034186,16966.0,16965.0,1.51374299]
[1673168301347,1.77034186,16966.0,16965.0,1.51380341]
[1673168301608,1.77034186,16966.0,16965.0,1.51374299]
[1673168301989,1.77034623,16966.0,16965.0,1.51374299]
[1673168302801,1.77034623,16966.0,16965.0,1.51380341]
[1673168303284,1.80576292,16966.0,16965.0,1.51380341]
[1673168304275,1.80576292,16966.0,16965.0,1.51374299]
[1673168304552,1.77034623,16966.0,16965.0,1.51374299]
[1673168305136,1.77034623,16966.0,16965.0,1.51380341]
[1673168305399,1.80576292,16966.0,16965.0,1.51374299]
[1673168305660,1.77034623,16966.0,16965.0,1.51374299]
[1673168307191,1.77034623,16966.0,16965.0,1.25951429]
[1673168307714,1.77034623,16966.0,16965.0,1.25945387]
[1673168308209,1.77034623,16966.0,16965.0,1.25951429]
[1673168308553,1.77034623,16966.0,16965.0,1.25945387]
[1673168312691,1.77034623,16966.0,16965.0,1.25951429]
[1673168313029,1.77034623,16966.0,16965.0,1.25945387]
[1673168313295,1.80576292,16966.0,16965.0,1.51374903]
[1673168313778,1.77034623,16966.0,16965.0,1.51374903]
[1673168314411,1.77034623,16966.0,16965.0,1.51380945]
[1673168314666,1.77034623,16966.0,16965.0,1.51374903]
[1673168315480,1.32818808,16966.0,16965.0,1.51374903]
[1673168315733,1.32818808,16966.0,16965.0,1.25945387]
[1673168315987,1.62818808,16966.0,16965.0,1.25945387]
[1673168316492,1.32818808,16966.0,16965.0,1.25951429]
[1673168316822,1.77028846,16966.0,16965.0,1.25951429]
[1673168317072,1.77028992,16966.0,16965.0,1.25951429]
[1673168317603,1.32818808,16966.0,16965.0,1.25945387]
[1673168318124,1.77028278,16966.0,16965.0,1.25945387]
[1673168318892,1.77028278,16966.0,16965.0,1.25951429]
[1673168320191,1.77028278,16966.0,16965.0,1.51371871]
[1673168320426,1.77028278,16966.0,16965.0,1.51365829]
[1673168322907,1.77028278,16966.0,16965.0,1.25936313]
[1673168325209,1.32818808,16966.0,16965.0,1.25936313]
[1673168326364,1.77032809,16966.0,16965.0,1.25936313]
[1673168326615,1.62818808,16966.0,16965.0,1.25936313]
[1673168326938,1.32818808,16966.0,16965.0,1.25936313]
[1673168329784,1.32818808,16966.0,16965.0,1.51370359]
[1673168330329,1.32818808,16966.0,16965.0,1.51364317]
[1673168330870,1.32818808,16966.0,16965.0,1.25942355]
[1673168331121,1.32818808,16966.0,16965.0,1.25936313]
[1673168332842,1.32818808,16966.0,16965.0,1.25942355]
[1673168333340,1.32818808,16966.0,16965.0,1.25936313]
[1673168333855,1.32818808,16966.0,16965.0,1.25942355]
[1673168334356,1.36360477,16966.0,16965.0,1.25942355]
[1673168334638,1.32818808,16966.0,16965.0,1.51370963]
[1673168334879,1.32818808,16966.0,16965.0,1.51364921]
[1673168335414,1.36360477,16966.0,16965.0,1.51364921]
[1673168335661,1.32818808,16966.0,16965.0,1.51364921]
[1673168336808,1.32818808,16966.0,16965.0,1.51370963]
[1673168337445,1.36360477,16966.0,16965.0,1.51370963]
[1673168337688,1.32818808,16966.0,16965.0,1.51364921]
[1673168338189,1.36360477,16966.0,16965.0,1.51364921]
[1673168338411,1.32818808,16966.0,16965.0,1.51364921]
[1673168339281,1.32818808,16966.0,16965.0,1.51370963]
[1673168340496,1.32818808,16966.0,16965.0,1.51364921]
[1673168341427,1.36360477,16966.0,16965.0,1.51364921]
[1673168341674,1.32818808,16966.0,16965.0,1.51364921]
[1673168341922,1.32818808,16966.0,16965.0,1.51356284]
[1673168344092,1.32818808,16966.0,16965.0,1.51362326]
[1673168344344,1.32818808,16966.0,16965.0,1.51356284]
[1673168345549,1.36360477,16966.0,16965.0,1.51356284]
[1673168345831,1.32818808,16966.0,16965.0,1.51356284]
[1673168346334,1.32818808,16966.0,16965.0,1.25927676]
[1673168347676,1.32818808,16966.0,16965.0,1.25933718]
[1673168347936,1.32818808,16966.0,16965.0,1.25927676]
[1673168348786,1.62807316,16966.0,16965.0,1.25927676]
[1673168349045,1.62807316,16966.0,16965.0,1.25933718]
[1673168349295,1.62807316,16966.0,16965.0,1.25927676]
[1673168349919,1.62807316,16966.0,16965.0,1.51354817]
[1673168350172,1.32807316,16966.0,16965.0,1.51354817]
[1673168350685,1.32807316,16966.0,16965.0,1.25927676]
[1673168353238,1.32807316,16966.0,16965.0,1.25933718]
[1673168353776,1.32807316,16966.0,16965.0,1.25927676]
[1673168355328,1.32807316,16966.0,16965.0,1.25933718]
[1673168356320,1.36348985,16966.0,16965.0,1.25933718]
[1673168356571,1.32807316,16966.0,16965.0,1.25933718]
[1673168357814,1.32807316,16966.0,16965.0,1.25927676]
[1673168361216,1.32807316,16966.0,16965.0,1.25933718]
[1673168361479,1.32807316,16966.0,16965.0,1.25927676]
[1673168362602,1.32807316,16966.0,16965.0,1.25933718]
[1673168365667,1.32807316,16966.0,16965.0,1.25927676]
[1673168367196,1.32807316,16966.0,16965.0,1.3857536]
[1673168367703,1.32807316,16966.0,16965.0,1.25927676]
[1673168371070,1.32807316,16966.0,16965.0,1.25933718]
[1673168371356,1.32807316,16966.0,16965.0,1.25927676]
[1673168371816,1.32807316,16966.0,16965.0,1.25916833]
[1673168373931,1.32807316,16966.0,16965.0,1.25922875]
[1673168374945,1.32807316,16966.0,16965.0,1.25916833]
[1673168379776,1.32807316,16966.0,16965.0,1.25922875]
[1673168383565,1.36348985,16966.0,16965.0,1.25922875]
[1673168384075,1.32807316,16966.0,16965.0,1.25922875]
[1673168384379,1.32807316,16966.0,16965.0,1.25916833]
[1673168384632,1.36348985,16966.0,16965.0,1.25922875]
[1673168384883,1.32807316,16966.0,16965.0,1.25916833]
[1673168385676,1.32807316,16966.0,16965.0,1.25922875]
[1673168390022,1.32807316,16966.0,16965.0,1.25916833]
[1673168390931,1.62807316,16966.0,16965.0,1.25916833]
[1673168391178,1.32807316,16966.0,16965.0,1.25916833]
[1673168393739,1.32807316,16966.0,16965.0,1.25922875]
[1673168394248,1.32807316,16966.0,16965.0,1.25916833]
[1673168395261,1.62807316,16966.0,16965.0,1.25916833]
[1673168395513,1.62807316,16966.0,16965.0,1.25906377]
[1673168395808,1.32807316,16966.0,16965.0,1.25906377]
[1673168396017,1.62807316,16966.0,16965.0,1.25906377]
[1673168396252,1.32807316,16966.0,16965.0,1.25906377]
[1673168396782,1.32807316,16966.0,16965.0,1.25912419]
[1673168398248,1.32807316,16966.0,16965.0,1.51338034]
[1673168398504,1.32807316,16966.0,16965.0,1.25906377]
[1673168401564,1.32807316,16966.0,16965.0,1.25272077]
[1673168401817,1.32807316,16966.0,16965.0,1.25039055]
[1673168402089,1.32807316,16966.0,16965.0,1.25045097]
[1673168402337,1.32807316,16966.0,16965.0,1.25039055]
[1673168402879,1.62807316,16966.0,16965.0,0.65542787]
[1673168406459,1.32807316,16966.0,16965.0,0.65548829]
[1673168406705,1.32807316,16966.0,16965.0,0.65542787]
[1673168407455,1.32807316,16966.0,16965.0,0.65548829]
[1673168407732,1.32807316,16966.0,16965.0,0.65542787]
[1673168408222,1.62807316,16966.0,16965.0,0.65542787]
[1673168409747,1.32807316,16966.0,16965.0,0.65542787]
[1673168410246,1.62807316,16966.0,16965.0,0.65542787]
[1673168410753,1.32807316,16966.0,16965.0,0.65542787]
[1673168411757,1.62807316,16966.0,16965.0,0.65542787]
[1673168415560,1.32807316,16966.0,16965.0,0.65542787]
[1673168417731,1.62807316,16966.0,16965.0,0.65542787]
[1673168418242,1.62807316,16966.0,16965.0,0.65548829]
[1673168418775,1.62807316,16966.0,16965.0,0.65542787]
[1673168420964,1.32807316,16966.0,16965.0,0.65542787]
[1673168422182,1.32807316,16966.0,16965.0,0.65548829]
[1673168423827,1.32807316,16966.0,16965.0,0.65542787]
[1673168424072,1.32807316,16966.0,16965.0,0.65548829]
[1673168424332,1.62807316,16966.0,16965.0,0.65548829]
[1673168424582,1.62807316,16966.0,16965.0,0.65530941]
[1673168424854,1.32807316,16966.0,16965.0,0.65530941]
[1673168425125,1.62807316,16966.0,16965.0,0.65530941]
[1673168425917,1.62807316,16966.0,16965.0,0.65536983]
[1673168426475,1.32807316,16966.0,16965.0,0.65530941]
[1673168426986,1.32807316,16966.0,16965.0,0.65536983]
[1673168429209,2.26383042,16966.0,16965.0,0.65530941]
[1673168429460,2.22841373,16966.0,16965.0,0.00585554]
[1673168429718,2.81782773,16966.0,16965.0,0.00585554]
[1673168434365,2.81770093,16966.0,16965.0,0.00585554]
[1673168437525,2.85311762,16966.0,16965.0,0.00585554]
[1673168449777,2.85311762,16966.0,16965.0,0.07400592]
[1673168450039,2.85311762,16966.0,16965.0,0.0739455]
[1673168450302,2.85311762,16966.0,16965.0,0.00585554]
[1673168450797,2.85311762,16966.0,16965.0,0.68089958]
[1673168456323,2.85311762,16966.0,16965.0,0.68079276]
[1673168468155,2.02275967,16966.0,16965.0,0.68085318]
[1673168468409,2.55311762,16966.0,16965.0,0.68085318]
[1673168468700,2.02275967,16966.0,16965.0,0.68079276]
[1673168470945,1.43334567,16966.0,16965.0,0.68079276]
[1673168471457,1.39792898,16966.0,16965.0,0.68079276]
[1673168471938,1.84008716,16966.0,16965.0,0.68079276]
[1673168472181,1.39792898,16966.0,16965.0,0.68085318]
[1673168472426,1.39792898,16966.0,16965.0,0.68079276]
[1673168473909,1.39792898,16966.0,16965.0,0.68085318]
[1673168474159,1.39792898,16966.0,16965.0,0.68079276]
[1673168478979,1.39792898,16966.0,16965.0,0.68067913]
[1673168479233,2.22828693,16966.0,16965.0,0.68067913]
[1673168480617,1.69792898,16966.0,16965.0,0.68067913]
[1673168481123,1.39792898,16966.0,16965.0,0.68067913]
[1673168482177,1.39792898,16966.0,16965.0,0.68073955]
[1673168482437,1.39792898,16966.0,16965.0,0.68067913]
[1673168483765,1.39792898,16966.0,16965.0,0.68073955]
[1673168484543,1.77007155,16966.0,16965.0,0.68073955]
[1673168484769,1.77007155,16966.0,16965.0,0.68067913]
[1673168486795,1.32794636,16966.0,16965.0,0.68067913]
[1673168487623,1.77005983,16966.0,16965.0,0.68067913]
[1673168489865,1.77005983,16966.0,16965.0,0.68073955]
[1673168490139,1.77005983,16966.0,16965.0,0.68067913]
[1673168497529,1.77004747,16966.0,16965.0,0.68067913]
[1673168497791,1.32794636,16966.0,16965.0,0.68067913]
[1673168498795,1.32794636,16966.0,16965.0,0.68073955]
[1673168499050,1.32794636,16966.0,16965.0,0.68067913]
[1673168502367,1.32794636,16966.0,16965.0,0.68059164]
[1673168509230,1.32794636,16966.0,16965.0,0.68065206]
[1673168509481,1.32794636,16966.0,16965.0,0.68059164]
[1673168510243,1.32794636,16966.0,16965.0,0.68029164]
[1673168511219,1.32794636,16966.0,16965.0,0.68035206]
[1673168511719,1.32794636,16966.0,16965.0,0.68029164]
[1673168520336,1.32794636,16966.0,16965.0,0.68035206]
[1673168520612,1.32794636,16966.0,16965.0,0.68029164]
[1673168521152,1.32788095,16966.0,16965.0,0.80208879]
[1673168521443,1.32788095,16966.0,16965.0,0.80214921]
[1673168521659,1.32788095,16966.0,16965.0,0.80208879]
[1673168521660,1.31380795,16966.0,16965.0,0.80208879]
[1673168522962,1.31380795,16966.0,16965.0,0.80214921]
[1673168523475,1.75612817,16966.0,16965.0,0.80214921]
[1673168524217,1.75612817,16966.0,16965.0,0.80208879]
[1673168525505,1.75612817,16966.0,16965.0,0.68029164]
[1673168526013,1.31380795,16966.0,16965.0,0.68029164]
[1673168527684,1.31380795,16966.0,16965.0,0.68035206]
[1673168527938,1.75609448,16966.0,16965.0,0.68035206]
[1673168528447,1.31380795,16966.0,16965.0,0.68029164]
[1673168529952,1.75608665,16966.0,16965.0,0.68029164]
[1673168531194,1.31380795,16966.0,16965.0,0.68029164]
[1673168532226,1.75607556,16966.0,16965.0,0.68035206]
[1673168532489,1.75607556,16966.0,16965.0,0.68029164]
[1673168534402,1.75607556,16966.0,16965.0,0.80208879]
[1673168535015,1.75607556,16966.0,16965.0,0.80214921]
[1673168535263,1.75607556,16966.0,16965.0,0.80208879]
[1673168536433,1.75607556,16966.0,16965.0,0.80214921]
[1673168536967,1.75607556,16966.0,16965.0,0.80208879]
[1673168538369,1.75607556,16966.0,16965.0,0.80214921]
[1673168539530,1.75607556,16966.0,16965.0,0.80208879]
[1673168540449,1.75607556,16966.0,16965.0,0.68029164]
[1673168542403,1.75607556,16966.0,16965.0,0.68021851]
[1673168544230,1.75607556,16966.0,16965.0,0.68027893]
[1673168544483,1.75607556,16966.0,16965.0,0.68021851]
[1673168546728,1.75607556,16966.0,16965.0,0.68027893]
[1673168546972,1.75607556,16966.0,16965.0,0.68021851]
[1673168550001,1.75607556,16966.0,16965.0,0.80206877]
[1673168550245,1.75607556,16966.0,16965.0,0.68021851]
[1673168554382,1.7560706,16966.0,16965.0,0.68021851]
[1673168554628,1.31380795,16966.0,16965.0,0.68027893]
[1673168555133,1.75607346,16966.0,16965.0,0.68021851]
[1673168556146,1.75608601,16966.0,16965.0,0.68021851]
[1673168556413,1.31380795,16966.0,16965.0,0.68021851]
[1673168556937,1.31380795,16966.0,16965.0,1.44000706]
[1673168557196,1.18113528,16966.0,16965.0,2.04663006]
[1673168557457,1.5349316,16966.0,16965.0,1.44000706]
[1673168557736,1.35805612,16966.0,16965.0,1.44000706]
[1673168558547,1.29405612,16966.0,16965.0,1.43483259]
[1673168558822,1.47093434,16966.0,16965.0,1.44783259]
[1673168559080,1.11708609,16966.0,16965.0,1.44783259]